Cogmind - Beta 13 @@@ ROGUE MODE // 2024.04.18 @ 20:50:47 Player: Bace Troncons Result: Destroyed by G-34 Mercenary with Small Laser Performance ------------- Evolutions (1) 500 Regions Visited (3) 600 Robots Destroyed (21) 105 Value Destroyed (638) 638 Prototype IDs (2) 40 Alien Tech Used (0) 0 Bonus (35) 35 TOTAL SCORE: 1918 Bonus ------- High Alert Combat Kills 35 Cogmind --------- Core Integrity 0/400 Matter 15/300 Energy 250/250 System Corruption 0% Temperature Cool (6) Movement Treading (160) Location -9/Mines Parts ------- > --- POWER (1) -------- Ion Engine > --- PROPULSION (2) --- Light Treads > --- UTILITY (4) ------ Signal Interpreter > --- WEAPON (2) ------- (None) > --- INVENTORY (5) ---- Light Treads Armored Wheel Sensor Array Datajack Signal Generator Peak State ------------ > --- POWER ------------ (None) > --- PROPULSION ------- Armored Wheel Armored Wheel > --- UTILITY ---------- Small Storage Unit Structural Scanner Signal Interpreter > --- WEAPON ----------- Heavy Assault Rifle Heavy Assault Rifle > --- INVENTORY -------- Ion Engine Light Treads Light Treads Armored Wheel Medium Matter Pod Sensor Array Rocket Launcher Datajack [Rating: 12] Favorites ----------- Power Light Ion Engine Engine Light Ion Engine Propulsion Compact Wheel Treads Light Treads Wheel Compact Wheel Utility Small Storage Unit Device Structural Scanner Storage Small Storage Unit Processor Signal Interpreter Weapon Assault Rifle Ballistic Gun Assault Rifle Launcher Grenade Launcher Special Weapon Mining Laser Build | -11 -10 -9 -9 ------- Run | Yrd Mat Mat Min Slots Evolved 2 | . . 2 . Power . | . . . . Propulsion . | . . . . Utility 2 | . . 2 . Weapon . | . . . . Parts Attached 25 | 6 5 12 2 Power 3 | 1 1 . 1 Engine 3 | 1 1 . 1 Core . | . . . . Reactor . | . . . . Propulsion 8 | 4 . 3 1 Treads 4 | 2 . 1 1 Leg . | . . . . Wheel 4 | 2 . 2 . Hover . | . . . . Flight . | . . . . Utility 4 | 1 1 2 . Device 2 | . . 2 . Storage 1 | 1 . . . Processor 1 | . 1 . . Hackware . | . . . . Protection . | . . . . Artifact . | . . . . Weapon 10 | . 3 7 . Energy Gun . | . . . . Energy Cannon . | . . . . Ballistic Gun 5 | . 2 3 . Ballistic Cannon . | . . . . Launcher 4 | . 1 3 . Special Weapon 1 | . . 1 . Impact Weapon . | . . . . Slashing Weapon . | . . . . Piercing Weapon . | . . . . Special Melee Weapon . | . . . . Unidentified Prototypes . | . . . . Parts Lost 13 | . . 7 6 Power 1 | . . 1 . Propulsion 4 | . . 2 2 Utility 3 | . . 1 2 Weapon 5 | . . 3 2 Highest Loss Streak 5 | . . 5 5 To Critical Strikes . | . . . . Average Slot Usage (%) 83 | . 98 81 60 Engine 8 | . 14 7 1 Wheel 20 | . 28 17 13 Device 8 | . . 17 7 Storage 12 | . 14 11 10 Processor 11 | . 13 11 11 Ballistic Gun 13 | . 15 13 13 Launcher 6 | . 13 2 . Naked Turns . | . . . . Heaviest Build 15 | 8 13 15 12 Greatest Support 26 | 26 26 26 24 Greatest Overweight (x) 1 | . . . 1 Average Overweight (x) . | . . . . Largest Inventory Capacity 8 | 8 8 8 8 Average Capacity 7 | 6 8 8 7 Most Carried 8 | 6 8 8 8 Average Carried 6 | 4 6 6 7 Final Capacity 8 | 8 8 8 5 Final Carried 8 | 5 8 8 5 Class Distribution -------------------- 89% | Mutant 10% | Skirmisher Dominant Class ---------------- Mutant | -10/Materials Mutant | -9/Materials Mutant | -9/Mines Resources | -11 -10 -9 -9 ----------- Run | Yrd Mat Mat Min Matter Collected 499 | 260 239 . . Remotely . | . . . . Salvage Created 436 | . 361 75 . Parts 26 | . 22 4 . Haulers Intercepted 1 | . 1 . . Recyclers Shooed . | . . . . Parts Field Recycled . | . . . . Retrieved Matter . | . . . . Parts Self-Destructed . | . . . . Prevented . | . . . . Kills | -11 -10 -9 -9 ------- Run | Yrd Mat Mat Min Combat Hostiles Destroyed 16 | . 11 5 . Guns 1 | . . 1 . AOE 15 | . 11 4 . Classes Destroyed 8 | . 7 1 . Worker 1 | . 1 . . Builder 1 | . 1 . . Hauler 1 | . 1 . . Recycler 1 | . 1 . . Watcher 1 | . 1 . . Swarmer 3 | . 3 . . Grunt 10 | . 8 2 . Sentry 3 | . . 3 . Best Kill Streak 7 | . 7 4 . Combat Bots Only 5 | . 5 4 . Max Kills in Single Turn 3 | . 3 2 . Gunslinging . | . . . . Exploded 3 | . 3 2 . Melee . | . . . . Uniques/NPCs Destroyed . | . . . . Combat | -11 -10 -9 -9 -------- Run | Yrd Mat Mat Min Hostile Shots Fired 201 | . 24 81 96 Missed 69 | . 10 22 37 Damage Taken 1591 | . 183 871 537 Core 411 | . 11 213 187 Absorbed by Shields . | . . . . Core Remaining (%) 97 | 100 95 . . Volleys Fired 48 | . 21 27 . Largest 2 | . 1 2 . Hottest 100 | . 30 100 . Shots Fired 54 | . 21 33 . Gun 16 | . 3 13 . Cannon . | . . . . Launcher 36 | . 18 18 . Special 2 | . . 2 . Kinetic 16 | . 3 13 . Thermal 2 | . . 2 . Explosive 36 | . 18 18 . Electromagnetic . | . . . . Robot Hit Streak 11 | . 4 11 . Robot Miss Streak 2 | . 2 2 . Penetration Max . | . . . . Secondary Targets . | . . . . Shots Hit Robots 35 | . 13 22 . Core Hits 41 | . 26 15 . Critical Kills 1 | . 1 . . Critical Parts Destroyed . | . . . . Critical Strikes 1 | . 1 . . Destroy 1 | . 1 . . Melee Attacks . | . . . . Impact . | . . . . Slashing . | . . . . Piercing . | . . . . Sneak Attacks . | . . . . Combat Hostiles . | . . . . Follow-up Attacks . | . . . . Damage Inflicted 1710 | . 919 791 . Guns 112 | . 35 77 . Cannons . | . . . . Explosions 1546 | . 884 662 . Melee . | . . . . Ramming 4 | . . 4 . Kinetic 112 | . 35 77 . Thermal 286 | . . 286 . Explosive 1252 | . 884 368 . Electromagnetic 56 | . . 56 . Impact . | . . . . Slashing . | . . . . Piercing . | . . . . Highest Corruption 1 | . 1 . . Average Corruption 1 | . 1 . . Corruption Purged . | . . . . Corruption Blocked . | . . . . Overload Shots . | . . . . Overflow Damage 83 | . . 83 . Projectiles . | . . . . Explosions 83 | . . 83 . Melee . | . . . . Knockbacks . | . . . . Impact . | . . . . Kinetic . | . . . . Secondary . | . . . . Self-Inflicted Damage 102 | . 27 75 . Shots 2 | . 1 1 . Rammed 3 | . . 3 . Targets Rammed 3 | . . 3 . Kicked . | . . . . Crushed . | . . . . Highest Temperature 25 | . 16 25 . Average Temperature 8 | . 5 10 . Received Heat Transfer 432 | . 69 303 60 Siege Activations . | . . . . Robots Corrupted . | . . . . Combat Hostiles . | . . . . Parts Fried . | . . . . Impact Corruptions . | . . . . Robots Melted . | . . . . Combat Hostiles . | . . . . Parts Melted . | . . . . Heat Transferred 250 | . . 250 . Parts Sabotaged . | . . . . Parts Stolen . | . . . . Parts Stripped . | . . . . Power Chain Reactions 1 | . . 1 . Alert | -11 -10 -9 -9 ------- Run | Yrd Mat Mat Min Peak Influence 527 | . 409 527 220 Initial 205 | . . 172 205 Average 225 | . 178 348 194 Maximum Alert Level 2 | . 2 2 1 Low Security (%) 32 | 100 44 4 32 Level 1 55 | . 49 67 67 Level 2 11 | . 5 27 . Level 3 . | . . . . Level 4 . | . . . . Level 5 . | . . . . High Security . | . . . . Max Security . | . . . . Squads Dispatched 4 | . 2 2 . Investigation 2 | . 2 . . Extermination . | . . . . Reinforcement 2 | . . 2 . Assault . | . . . . Garrison . | . . . . Intercept . | . . . . Searches Triggered . | . . . . Construction Impeded . | . . . . Haulers Reinforced . | . . . . Active Scanning Responses . | . . . . Cargo Convoy Interrupts . | . . . . Stealth | -11 -10 -9 -9 --------- Run | Yrd Mat Mat Min Distress Signals 3 | . 1 2 . Communications Jammed . | . . . . Distress Signals . | . . . . Times Spotted 38 | . 13 16 9 Peak Tracking Total 8 | . 6 8 8 Tactical Retreats 2 | . . 1 1 Traps | -11 -10 -9 -9 ------- Run | Yrd Mat Mat Min Traps Triggered . | . . . . Indirectly . | . . . . Trap Hack Attempts . | . . . . Triggered . | . . . . Disarmed . | . . . . Reprogrammed . | . . . . Reused . | . . . . Traps Extracted . | . . . . Installed . | . . . . Triggered . | . . . . Machines | -11 -10 -9 -9 ---------- Run | Yrd Mat Mat Min Machines Disabled 9 | . 2 7 . Max in Single Turn 3 | . 1 3 . Machines Repaired . | . . . . Machines Dismantled . | . . . . Machines Sabotaged . | . . . . Overloaded Fab Kills . | . . . . Hacking | -11 -10 -9 -9 --------- Run | Yrd Mat Mat Min Machines Accessed 7 | . 5 2 . Terminals 5 | . 4 1 . Fabricators . | . . . . Repair Stations . | . . . . Recycling Units 1 | . 1 . . Scanalyzers 1 | . . 1 . Garrison Access . | . . . . Total Hacks 18 | . 14 4 . Successful 9 | . 6 3 . Failed 9 | . 8 1 . Catastrophic 3 | . 3 . . Database Lockouts . | . . . . Manual . | . . . . Terminals 14 | . 12 2 . Fabricators . | . . . . Repair Stations . | . . . . Recycling Units 2 | . 2 . . Scanalyzers 2 | . . 2 . Garrison Access . | . . . . Terminal Hacks 7 | . 5 2 . Prototype ID Bank 1 | . 1 . . Level Access Points 1 | . 1 . . Emergency Access Points 1 | . . 1 . Locate Traps 1 | . 1 . . Dispatch Records 1 | . . 1 . Hauler Manifests 1 | . 1 . . Zone Layout 1 | . 1 . . Fabricator Hacks . | . . . . Repair Station Hacks . | . . . . Recycling Unit Hacks 1 | . 1 . . Retrieve Components 1 | . 1 . . Scanalyzer 1 | . . 1 . Insert Component 1 | . . 1 . Garrison Access Hacks . | . . . . Unauthorized Hacks . | . . . . Terminals . | . . . . Fabricators . | . . . . Repair Stations . | . . . . Recycling Units . | . . . . Scanalyzers . | . . . . Garrison Access . | . . . . Data Cores Recovered . | . . . . Used . | . . . . Hacking Detections 7 | . 5 2 . Full Trace Events 2 | . 2 . . Feedback Events 1 | . 1 . . Corruption 1 | . 1 . . Feedback Blocked . | . . . . Robot Schematics Acquired . | . . . . Robots Built . | . . . . Authchips . | . . . . Time . | . . . . Total Robot Build Rating . | . . . . Part Schematics Acquired . | . . . . Parts Built . | . . . . Authchips . | . . . . Time . | . . . . Total Part Build Rating . | . . . . Parts Repaired . | . . . . Time . | . . . . Parts Recycled . | . . . . Recycled Matter . | . . . . Retrieved Matter . | . . . . Retrieved Components 3 | . 3 . . Parts Scanalyzed 1 | . . 1 . Part Schematics Acquired . | . . . . Parts Damaged . | . . . . Bothacking | -11 -10 -9 -9 ------------ Run | Yrd Mat Mat Min Used RIF Installer . | . . . . Robots Hacked . | . . . . Non-combat . | . . . . Combat . | . . . . Robot Hacks Applied . | . . . . Relay Couplers Released . | . . . . Fabnet Peak Effective % . | . . . . Robots Rewired . | . . . . Allies Hacked . | . . . . Hacks Repelled . | . . . . Allies | -11 -10 -9 -9 -------- Run | Yrd Mat Mat Min Total Allies . | . . . . Largest Group . | . . . . Highest-Rated Group . | . . . . Highest-Rated Ally . | . . . . Total Orders . | . . . . Ally Attacks . | . . . . Total Damage . | . . . . Kills . | . . . . Allies Corrupted . | . . . . Allies Melted . | . . . . Intel | -11 -10 -9 -9 ------- Run | Yrd Mat Mat Min Robot Analysis Total . | . . . . Derelict Logs Recovered 1 | . . . 1 Drone Launches . | . . . . Drone Recoveries . | . . . . Exploration | -11 -10 -9 -9 ------------- Run | Yrd Mat Mat Min Turns Passed 779 | 67 276 268 168 Spaces Moved 597 | 58 243 172 124 Core 34 | 21 . . 13 Treads 22 | 6 . . 16 Legs . | . . . . Wheels 541 | 31 243 172 95 Hover . | . . . . Flight . | . . . . Fastest Speed 50 | 50 90 90 90 Average Speed 92 | 85 90 94 100 Slowest Speed 160 | 160 90 100 160 Overloaded Moves . | . . . . Propulsion Burnouts . | . . . . Robots Hopped . | . . . . Cave-ins Triggered . | . . . . Exploration Rate (%) 23 | 4 44 23 22 Regions Visited 3 Branch Regions 1 Pre-discovered Areas . | . . . . Known Exits Taken 2 | . 1 1 . Unknown Exits Taken 1 | 1 . . . Scrap Searched . | . . . . Spaces Dug 26 | . 7 19 . Terrain Destroyed 180 | . 62 118 . Melee . | . . . . Projectile . | . . . . AOE 180 | . 62 118 . Terrain Rammed . | . . . . Walls Destroyed . | . . . . Machines Disabled . | . . . . Actions | -11 -10 -9 -9 --------- Run | Yrd Mat Mat Min Total 762 | 75 281 238 168 Wait 57 | . . 16 41 Move 594 | 57 242 171 124 Hop . | . . . . Pick Up 28 | 10 9 8 1 Fast Attach . | . . . . Attach 19 | 5 4 8 2 Detach 2 | 1 1 . . Swap 6 | 1 1 4 . Drop 5 | 1 3 1 . Fire 48 | . 21 27 . Melee . | . . . . Ram 3 | . . 3 . Kick . | . . . . Crush . | . . . . Escape Stasis . | . . . . Rewire . | . . . . Trap . | . . . . Miscellaneous . | . . . . Route ------- -11/Scrapyard -10/Materials (discovered 4 exits: *Mat x3 / *Min) -9/Materials (discovered 2 exits: *Min / [*Sto]) -9/Mines History --------- Turn | Location | Event 13 | -11/Scrapyard | Discovered new exit (range 14) 68 | -11/Scrapyard | Entered Materials 115 | -10/Materials | Discovered new exit (range 14) 137 | -10/Materials | Identified exit to Mines 287 | -10/Materials | Discovered new exit (range 15) 316 | -10/Materials | Build established: Mutant 320 | -10/Materials | Identified exit to Materials 344 | -10/Materials | Entered another Materials area 344 | -9/Materials | Evolved 2 slots: Utility x2 554 | -9/Materials | Discovered new exit (range 8) 559 | -9/Materials | Lost 5 parts (1p1n1u2w) 576 | -9/Materials | Identified exit to Mines 579 | -9/Materials | Discovered new exit (range 15) 611 | -9/Materials | Core integrity fell below 50% 612 | -9/Materials | Entered Mines 736 | -9/Mines | Core integrity fell below 20% 745 | -9/Mines | Met a Derelict testing a Signal Generator 749 | -9/Mines | Learned Materials terminal intel 754 | -9/Mines | Found Signal Generator 770 | -9/Mines | Lost 5 parts (2n1u2w) 780 | -9/Mines | Destroyed by G-34 Mercenary with Small Laser Last Messages --------------- Something is scanning the area. 00704_ Arm. Wheel destroyed. 00710_ Hvy. Assault Rifle destroyed. 00735_ Structural Scanner destroyed. 00739_ Arm. Wheel destroyed. 00745_ A derelict emerges from the shadows: "Quiet! I'm testing a new device we can use to divert those annoying Unaware when we need to." 00749_ N3-YQG(g) suffers critical hit (Destroy). 00749_ N3-YQG(g) destroyed. 00749_ Acquired derelict log, extracted data. Data stored: Materials terminal intel. 00754_ Acquired Signal Generator. 00763_ S-10 Pest destroyed. 00764_ T-07 Excavator is excavating. 00764_ S-10 Pest destroyed. 00768_ T-07 Excavator is excavating. 00773_ Sml. Storage Unit destroyed. 00777_ T-07 Excavator is excavating. Map ----- +----------------------------------------------------+ | ?????????## #######??????????????????? | | ?????????## ######???????????????????? | | ?????????## #######??????????????????? | | ?????????## ###??????????????????? | | ?????????## ##??????????????????? | | ?????????##### ##??????????????????? | | ?????????#### ###?????????????????? | | ?????????### ###?????????????????? | | ?????????## ##?????????????????? | | ?????????## ##?????????????????? | | ?????????## ###?????????????????? | | ?????????### ####?????????????????? | | ?????????### ###??????????????????? | | ??????????## ##???????????????????? | | ??????????### ###???????????????????? | | ??????????### ####???????????????????? | | ???????????## ######## """??????????? | | ?????????#### ???????? | | ?????????# ######## """??????????? | | ##### #####?????????????????????? | | [*#####?????????????????????? | | #####%#?????????????????????????? | | ?# ?????#=#?????????????????????????? | | ??# #### ####??????????###?????????? | | ??# *%= = ###??####### ##????????? | | ??# *%[ ####u ! @ #????????? | | ??## ###= ## g ] t##????????? | | ???## ??## gs ### #?????????? | | ????## ????### l ##?###?????????? | | ?????#???????### #??????????????? | | ???????????????## ##??????????????? | | ????????????????######???????????????? | | ?????????????????????????????????????? | | ?????????????????????????????????????? | | ?????????????????????????????????????? | | ?????????????????????????????????????? | | | | | | | | | | | | | | | | | | | | | | | | | | | | | +----------------------------------------------------+ Best States ------------- Heat Dissipation 28 Energy Generation 10 Energy Capacity 250 Matter Stores 300 Matter Capacity 300 Sight Range 16 Robot Scan Range 14 Terrain Scan Density 10 Evasion (%) 50 Recoil Reduction 1 Item Schematics ----------------- None Robot Schematics ------------------ None Fabricated ------------ Nothing Alien Tech Used ----------------- None Achievements -------------- None Challenges ------------ None Game ------ Seed WeightColdTorch Manual? 0 Play Time 00:16:07 Cumulative 25.6 hours Start 2024.04.18 @ 20:36:14 End 2024.04.18 @ 20:50:47 Sessions 1 Manual Loads 0 Difficulty Rogue Special Mode None Game No. 51 Rogue 51 Adventurer 0 Explorer 0 Win Type - Total 0 Types 0/0/0/0/0/0/0/0/0 Lore% 19 Gallery% 23 Achievement% 20 Wizard Run 0 Options --------- Layout 1 ASCII 0 Keyboard 1 Movement Numpad Keybinds 0 Fullscreen 1 Font 24/Smallcaps Map View 50x35 Zoom Use 0% Tactical HUD 1 Map Filters NONE Filters NONE Steam 1 RUN: 73fcdd3b-fb50-4084-836d-b205f685be0a